fUSD/lending_fUSD_20241020
["ID","MTS","AMOUNT","RATE_DAILY","PERIOD"]
[340552396,1729452448953,-168.43382,0.00010791,2]
[340552397,1729452448976,-150.0,0.00010796,2]
[340552398,1729452449000,-150.0,0.00010797,2]
[340552399,1729452449023,-150.0,0.00010798,2]
[340552400,1729452449044,-154.77468599,0.00010802,2]
[340552401,1729452449070,-150.0,0.00010804,2]
[340552402,1729452449094,-150.0,0.00010808,2]
[340552403,1729452449118,-150.0,0.00010813,2]
[340552404,1729452449141,-150.0,0.00010814,2]
[340552405,1729452449164,-150.0,0.0001082,2]
[340552406,1729452449187,-150.0,0.00010828,2]
[340552407,1729452449211,-150.0,0.00010828,2]
[340552408,1729452449234,-150.0,0.00010836,2]
[340552409,1729452449257,-150.0,0.0001084,2]
[340552410,1729452449280,-150.0,0.00010847,2]
[340552411,1729452449300,-412.6158,0.00010849,2]
[340552412,1729452449323,-150.0,0.00010853,2]
[340552413,1729452449347,-150.0,0.00010859,2]
[340552414,1729452449368,-150.0,0.0001086,2]
[340552415,1729452449394,-150.0,0.00010865,2]
[340552416,1729452449414,-150.0,0.00010866,2]
[340552417,1729452449437,-150.0,0.00010867,2]
[340552418,1729452449461,-150.0,0.00010877,2]
[340552419,1729452449483,-150.0,0.00010884,2]
[340552420,1729452449506,-150.0,0.00010884,2]
[340552421,1729452449527,-150.0,0.00010885,2]
[340552422,1729452449551,-150.0,0.00010885,2]
[340552423,1729452449574,-150.0,0.00010889,2]
[340552424,1729452449593,-336.795,0.0001089,2]
[340552425,1729452449616,-150.0,0.00010891,2]
[340552426,1729452449638,-150.0,0.00010894,2]
[340552427,1729452449662,-150.0,0.00010897,2]
[340552428,1729452449681,-277.0673,0.000109,2]
[340552429,1729452449704,-8074.21291407,0.000109,2]
[340552430,1729452449724,-266.57264879,0.000109,2]
[340552431,1729452449744,-2500.0,0.000109,2]
[340552432,1729452449766,-3362.20874022,0.000109,2]
[340552433,1729452449793,-150.0,0.00010901,2]
[340552434,1729452449817,-150.0,0.00010902,2]
[340552435,1729452449842,-150.0,0.00010905,2]
[340552436,1729452449865,-150.0,0.00010906,2]
[340552437,1729452449888,-150.0,0.00010912,2]
[340552438,1729452449912,-150.0,0.00010917,2]
[340552439,1729452449936,-150.0,0.00010917,2]
[340552440,1729452449960,-150.0,0.00010918,2]
[340552441,1729452449984,-150.0,0.00010929,2]
[340552442,1729452450008,-168.89952003,0.0001093,2]
[340552443,1729452450234,-150.0,0.00010934,2]
[340552444,1729452450259,-150.0,0.00010936,2]
[340552445,1729452450284,-150.0,0.00010938,2]
[340552446,1729452450306,-150.0,0.00010942,2]
[340552447,1729452450330,-150.0,0.00010945,2]
[340552448,1729452450355,-150.0,0.00010949,2]
[340552449,1729452450378,-150.0,0.00010949,2]
[340552450,1729452450402,-150.0,0.0001095,2]
[340552451,1729452450426,-150.0,0.00010952,2]
[340552452,1729452450446,-151.85608626,0.00010954,2]
[340552453,1729452450470,-150.0,0.00010955,2]
[340552454,1729452450492,-150.0,0.00010958,2]
[340552455,1729452450513,-256.7,0.00010959,2]
[340552456,1729452450534,-250.0,0.00010959,2]
[340552457,1729452450555,-162.61,0.00010959,2]
[340552458,1729452450576,-566.39,0.00010959,2]
[340552459,1729452450600,-150.0,0.0001096,2]
[340552460,1729452450622,-150.0,0.00010971,2]
[340552461,1729452450645,-150.0,0.00010971,2]
[340552462,1729452450666,-462.51275572,0.00010973,2]
[340552463,1729452450686,-150.99,0.00010999,2]
[340552464,1729452450707,-7360.8,0.00010999,2]
[340552465,1729452450733,-168113.38845718,0.00011,2]
[340552466,1729452506860,963.52,9.48e-05,2]
[340552469,1729452530965,-6402.8203,0.000109,2]
[340552470,1729452530986,-253.40370898,0.000109,2]
[340552471,1729452531013,-2297132.83609802,0.00011,2]
[340552472,1729452531034,-2000.0,0.00011,2]
[340552473,1729452531055,-200.0,0.00011,2]
[340552474,1729452531076,-812.0,0.00011,2]
[340552475,1729452531104,-1245.0,0.00011,2]
[340552476,1729452531125,-450.0,0.00011,2]
[340552477,1729452531146,-561.541,0.00011,2]
[340552478,1729452531167,-241.334,0.00011,2]
[340552479,1729452531187,-936.0,0.00011,2]
[340552480,1729452531209,-556.609,0.00011,2]
[340552481,1729452531229,-3359.0,0.00011,2]
[340552482,1729452531250,-1910.0,0.00011,2]
[340552483,1729452531272,-809.0,0.00011,2]
[340552484,1729452531294,-5888.0,0.00011,2]
[340552485,1729452531315,-150.0,0.00011,2]
[340552486,1729452531336,-2599.4637374,0.00011,2]
[340552487,1729452531358,-60996.2415364,0.00011,2]
[340552488,1729452531379,-11253.5820384,0.00011,2]
[340552489,1729452531407,-957773.13631129,0.00011,2]
[340552490,1729452531428,-1151.0,0.00011,2]
[340552491,1729452531451,-13539.0,0.00011,2]
[340552492,1729452531471,-1084.0,0.00011,2]
[340552493,1729452531493,-150.0,0.00011,2]
[340552494,1729452531514,-150.0,0.00011,2]
[340552495,1729452531537,-98231.02981636,0.00011,2]
[340552510,1729452632571,-300.0,0.00010899,2]
[340552511,1729452632580,-2121.09900074,0.000109,2]
[340552512,1729452632591,-2857.30228008,0.000109,2]
[340552518,1729452639013,-19826.89234783,0.000109,2]
[340552519,1729452639048,-19757.72707135,0.000109,2]
[340552520,1729452639059,-560.0,0.00011,2]
[340552521,1729452639068,-304.177,0.00011,2]
[340552522,1729452639077,-654.671,0.00011,2]
[340552523,1729452639086,-5888.0,0.00011,2]
[340552524,1729452639095,-812.0,0.00011,2]
[340552525,1729452639106,-150.0,0.00011,2]
[340552526,1729452639117,-471.19406154,0.00011072,2]
[340552527,1729452640097,-25110.48280002,0.00011072,2]
[340552533,1729452640469,-400.0,0.00011072,2]
[340552544,1729452643675,-13539.0,0.00011,2]
[340552545,1729452643684,-54032.56232317,0.00011072,2]
[340552560,1729452647205,-1151.0,0.00011,2]
[340552561,1729452647364,-10866.46828987,0.00011072,2]
[340552562,1729452647383,-3873.0436098,0.00011072,2]
[340552563,1729452647393,-6300.744336,0.0001108,2]
[340552564,1729452647402,-335.81,0.00011088,2]
[340552565,1729452647411,-150.0,0.00011088,2]
[340552566,1729452647421,-1000.0,0.0001109,2]
[340552567,1729452647430,-3654.0,0.00011096,2]
[340552568,1729452647439,-337.0,0.00011097,2]
[340552569,1729452647449,-14868.0,0.00011126,2]
[340552570,1729452647458,-170.14,0.00011323,2]
[340552571,1729452647467,-165.24,0.00011361,2]
[340552572,1729452647476,-250.0,0.00011361,2]
[340552573,1729452647486,-532.22,0.00011361,2]
[340552574,1729452647495,-166.02,0.00011379,2]
[340552575,1729452647505,-250.0,0.0001139,2]
[340552576,1729452647513,-420.7742239,0.00011479,2]
[340552577,1729452647523,-566.39,0.00011507,2]
[340552578,1729452647532,-1225.82,0.00011641,2]
[340552579,1729452647541,-1225.82,0.00011644,2]
[340552580,1729452647550,-1225.82,0.00011647,2]
[340552581,1729452647559,-1225.82,0.0001165,2]
[340552582,1729452647568,-1225.82,0.00011653,2]
[340552583,1729452647577,-1225.82,0.00011656,2]
[340552584,1729452647586,-1225.82,0.00011659,2]
[340552585,1729452647595,-1225.82,0.00011662,2]
[340552586,1729452647605,-1225.82,0.00011665,2]
[340552587,1729452647614,-1225.82,0.00011668,2]
[340552588,1729452647623,-1225.82,0.00011671,2]
[340552589,1729452647632,-1225.82,0.00011674,2]
[340552590,1729452647643,-1225.82,0.00011677,2]
[340552591,1729452647652,-1225.82,0.0001168,2]
[340552592,1729452647661,-1225.82,0.00011683,2]
[340552593,1729452647670,-1225.82,0.00011687,2]
[340552594,1729452647679,-1225.82,0.0001169,2]
[340552595,1729452647688,-1225.82,0.00011693,2]
[340552596,1729452647697,-1225.82,0.00011696,2]
[340552597,1729452647706,-1225.82,0.00011699,2]
[340552598,1729452647715,-963.52,0.00011744,2]
[340552599,1729452647724,-285.29,0.000118,2]
[340552600,1729452647733,-300.0,0.00011978,2]
[340552601,1729452647742,-300.0,0.00012,2]
[340552602,1729452647751,-184.09,0.00012033,2]
[340552603,1729452647760,-566.39,0.00012055,2]
[340552604,1729452647769,-2030.0,0.00012089,2]
[340552605,1729452647778,-335.81,0.0001232,2]
[340552606,1729452647787,-1000.0,0.00012322,2]
[340552607,1729452647796,-8074.21291403,0.00012389,2]
[340552608,1729452647805,-249.952,0.00012391,2]
[340552609,1729452647814,-249.952,0.00012391,2]
[340552610,1729452647827,-249.952,0.00012391,2]
[340552611,1729452647839,-249.952,0.00012391,2]
[340552612,1729452647850,-249.952,0.00012391,2]
[340552613,1729452647859,-249.952,0.00012391,2]
[340552614,1729452647869,-249.952,0.00012391,2]
[340552615,1729452647878,-249.952,0.00012391,2]
[340552616,1729452647887,-249.952,0.00012391,2]
[340552617,1729452647897,-249.952,0.00012391,2]
[340552618,1729452647906,-150.203,0.000124,2]
[340552619,1729452647916,-150.0,0.000124,2]
[340552620,1729452647926,-150.0,0.000124,2]
[340552621,1729452647935,-167.0,0.00012445,2]
[340552622,1729452647944,-184.09,0.00012458,2]
[340552623,1729452647953,-237.20090347,0.00012535,5]
[340552624,1729452647962,-566.39,0.00012603,2]
[340552625,1729452647972,-150.0,0.00012603,5]
[340552626,1729452647981,-150.0,0.00012603,5]
[340552627,1729452647990,-532.22,0.00012623,2]
[340552628,1729452647999,-167.0,0.00012855,2]
[340552629,1729452648008,-184.09,0.00012884,2]
[340552630,1729452648018,-179.99,0.00012893,2]
[340552631,1729452648027,-12416.0,0.000129,2]
[340552632,1729452648036,-220.73850701,0.00013104,2]
[340552633,1729452648045,-566.39,0.00013151,2]
[340552634,1729452648054,-167.0,0.00013266,2]
[340552635,1729452648063,-184.09,0.0001331,2]
[340552636,1729452648072,-335.81,0.00013552,2]
[340552637,1729452648081,-1000.0,0.00013554,2]
[340552638,1729452648090,-11520.0,0.000136,3]
[340552639,1729452648099,-167.0,0.00013677,2]
[340552640,1729452648108,-500.0,0.00013698,2]
[340552641,1729452648118,-500.0,0.00013699,2]
[340552642,1729452648127,-500.0,0.00013699,2]
[340552643,1729452648136,-500.0,0.00013699,2]
[340552644,1729452648146,-500.0,0.00013699,2]
[340552645,1729452648156,-500.0,0.00013699,2]
[340552646,1729452648165,-207.98004958,0.00013699,2]
[340552647,1729452648174,-500.0,0.00013699,2]
[340552648,1729452648183,-200.0,0.00013699,2]
[340552649,1729452648192,-184.09,0.00013735,2]
[340552650,1729452648202,-233.2510677,0.00013778,2]
[340552651,1729452648211,-812.08,0.0001379,2]
[340552652,1729452648220,-812.08,0.0001379,2]
[340552653,1729452648229,-812.08,0.0001379,2]
[340552654,1729452648238,-812.08,0.0001379,2]
[340552655,1729452648247,-812.08,0.0001379,2]
[340552656,1729452648256,-4800.64408656,0.000138,2]
[340552657,1729452764448,-170.34,0.00010959,2]
[340552658,1729452845314,153.90696528,0.00010967,2]
[340552659,1729453261932,166.45,0.00010959,2]
[340552660,1729453403458,250.0,0.0001,2]
[340552661,1729453419385,339.49536537,0.00010904,2]
[340552662,1729453522063,11520.0,0.00012,5]
[340552663,1729453640146,-867.16,0.00011035,2]
[340552664,1729453640166,-150.0,0.0001126,2]
[340552665,1729453640188,-300.0,0.00011279,2]
[340552666,1729453640208,-5888.0,0.0001128,2]
[340552667,1729453640228,-150.0,0.0001128,2]
[340552668,1729453640248,-560.0,0.0001128,2]
[340552669,1729453640269,-512.455,0.0001128,2]
[340552670,1729453640289,-13539.0,0.0001128,2]
[340552671,1729453640309,-1151.0,0.0001128,2]
[340552672,1729453640330,-936.0,0.0001128,2]
[340552673,1729453640350,-555.0,0.0001128,2]
[340552674,1729453640370,-150.0,0.0001128,2]
[340552675,1729453640390,-1084.0,0.0001128,2]
[340552676,1729453640410,-1910.0,0.0001128,2]
[340552677,1729453640429,-1102.489,0.0001128,2]
[340552678,1729453640449,-809.0,0.0001128,2]
[340552679,1729453640469,-256.76,0.000118,2]
[340552680,1729453640490,-300.0,0.00012,2]
[340552681,1729453640511,-420.0,0.00012391,2]
[340552682,1729453640532,-11223.29,0.00012785,2]
[340552683,1729453640557,-250.0,0.00012789,2]
[340552684,1729453640578,-2751.0,0.00012792,2]
[340552685,1729453640600,-212.88,0.00012798,2]
[340552686,1729453640620,-499.99,0.00012798,2]
[340552687,1729453640640,-166.02,0.00012805,2]
[340552688,1729453640661,-170.14,0.00012863,2]
[340552689,1729453640683,-250.0,0.00012923,2]
[340552690,1729453640705,-1000.0,0.00012958,2]
[340552691,1729453640726,-250.0,0.00012988,2]
[340552692,1729453640746,-167.38,0.00013198,2]
[340552693,1729453640767,-867.16,0.00013298,2]
[340552694,1729453640793,-423.69759664,0.00013541,2]
[340552695,1729453640814,-587.0,0.00013612,2]
[340552696,1729453640834,-200.0,0.00013699,2]
[340552697,1729453640855,-500.0,0.00013699,2]
[340552698,1729453640876,-167.0,0.00013739,2]
[340552699,1729453640897,-167.38,0.00013743,2]
[340552700,1729453640917,-58020.1734383,0.00013829,2]
[340552701,1729453640937,-1866.4855826,0.00013829,2]
[340552702,1729453640958,-1208.6261986,0.00013838,2]
[340552703,1729453640978,-5362.1440605,0.00013848,2]
[340552704,1729453640999,-14283.892277,0.00013848,2]
[340552705,1729453641021,-6459.37033126,0.0001389,2]
[340552706,1729453641042,-222.12562741,0.0001389,2]
[340552707,1729453831439,-661.83076547,0.00011289,2]
[340552708,1729453831450,-1356.19569135,0.00011289,2]
[340552709,1729453831463,-1500.45454318,0.00011289,2]
[340552710,1729453831472,-153.0,0.00011289,2]
[340552711,1729453831482,-150.0,0.00011289,2]
[340552712,1729453831491,-648.0785756,0.00011289,2]
[340552713,1729453831503,-984.09450233,0.00011289,2]
[340552714,1729453831514,-1182.71091713,0.00011289,2]
[340552715,1729453831525,-9485.60430468,0.00011289,2]
[340552716,1729453831537,-1238.51170026,0.00011289,2]
[340552717,1729453831547,-1151.0,0.00011289,2]
[340552718,1729453831557,-780.44,0.00011786,2]
[340552719,1729453831568,-231.08,0.000118,2]
[340552720,1729453831577,-250.0,0.00013541,2]
[340552721,1729453831586,-200.0,0.00013577,2]
[340552722,1729453831595,-300.0,0.00013819,2]
[340552723,1729453831604,-5025.5100431,0.0001382,2]
[340552724,1729453831614,-13387.1532139,0.0001382,2]
[340552725,1729453831625,-1197.44187259,0.0001389,2]
[340552726,1729453831636,-350.0,0.00014,2]
[340552727,1729453831648,-575.38549307,0.00014003,10]
[340552728,1729453831657,-780.44,0.0001405,2]
[340552729,1729453831667,-420.56541163,0.00014096,2]
[340552730,1729453831677,-167.0,0.00014193,2]
[340552731,1729453831687,-165.24,0.00014201,2]
[340552732,1729453831697,-184.09,0.00014237,2]
[340552733,1729453831707,-515.15574545,0.0001424,14]
[340552734,1729453831720,-560.0,0.0001428,2]
[340552735,1729453831730,-936.0,0.0001428,2]
[340552736,1729453831740,-555.0,0.0001428,2]
[340552737,1729453831749,-150.0,0.0001428,2]
[340552738,1729453831762,-1910.0,0.0001428,2]
[340552739,1729453831771,-809.0,0.0001428,2]
[340552740,1729453831780,-167.38,0.00014288,2]
[340552742,1729453831791,-150.0,0.00014289,2]
[340552745,1729453831800,-13539.0,0.00014289,2]
[340552746,1729453831810,-608.801,0.00014289,2]
[340552748,1729453831819,-1094.52299149,0.0001439,2]
[340552750,1729453831830,-204.09468422,0.0001439,2]
[340552752,1729453831840,-212.88,0.00014398,2]
[340552754,1729453831850,-158.51714257,0.0001442,2]
[340552756,1729453831859,-3701.79897065,0.0001447,2]
[340552757,1729453832435,-3040.13081235,0.0001447,2]
[340552758,1729453832451,-4064.67310528,0.0001447,2]
[340552759,1729453832462,-454.92529219,0.0001447,2]
[340552760,1729453832488,-361.36554768,0.0001447,2]
[340552761,1729453832499,-1130.9493575,0.0001447,2]
[340552762,1729453832510,-1157.53293378,0.0001447,2]
[340552763,1729453832521,-1129.06964195,0.0001447,2]
[340552764,1729453832533,-726.66444022,0.0001447,2]
[340552765,1729453832543,-370.07332474,0.0001448,2]
[340552766,1729453832556,-1238.04,0.0001448,2]
[340552767,1729453832582,-12117.30252774,0.0001448,2]
[340552768,1729453832594,-12356.94968238,0.0001448,2]
[340552769,1729453832606,-1326.47409564,0.0001448,2]
[340552772,1729453837808,-150.0,0.00011289,2]
[340552773,1729453837819,-150.0,0.00014289,2]
[340552774,1729453837829,-219.07829482,0.0001448,2]
[340552775,1729453837840,-930.51620209,0.0001448,2]
[340552776,1729453837853,-5808.32989986,0.0001448,2]
[340552777,1729453837930,-757.25070126,0.0001448,2]
[340552778,1729453837942,-534.33506897,0.0001448,2]
[340552779,1729453837994,-289.394105,0.0001448,2]
[340552780,1729453838005,-31184.60384993,0.0001448,2]
[340552781,1729453838414,-16666.05594743,0.0001448,2]
[340552782,1729453838441,-42338.47711214,0.0001448,2]
[340552783,1729453838458,-11864.2919674,0.0001448,2]
[340552784,1729453838468,-500.0,0.00014489,2]
[340552785,1729453838477,-500.0,0.00014489,2]
[340552786,1729453838488,-341.98807039,0.00014489,2]
[340552787,1729453838498,-173438.211117,0.0001449,2]
[340552788,1729453838508,-166100.087544,0.0001449,2]
[340552789,1729453838518,-500.0,0.00014499,2]
[340552790,1729453838527,-500.0,0.00014499,2]
[340552791,1729453838538,-165.31349674,0.00014499,2]
[340552792,1729453838548,-16480.16861189,0.000145,3]
[340552793,1729453838559,-96175.61823013,0.000145,3]
[340552794,1729453838579,-2100.92790881,0.000145,3]
[340552795,1729453838590,-327.698,0.000145,3]
[340552796,1729453838601,-2066.58,0.000145,3]
[340552797,1729453838812,-2837.4908233,0.000145,3]
[340552833,1729453839481,-1174.0,0.00011289,2]
[340552835,1729453839491,-221484.21413684,0.000145,3]
[340552837,1729453839503,-5760.86829652,0.000145,3]
[340552839,1729453839514,-1000.0,0.00014578,2]
[340552841,1729453839524,-167.0,0.00014647,2]
[340552843,1729453839533,-167.38,0.00014832,2]
[340552845,1729453839543,-11864.2919674,0.00014937,2]
[340552847,1729453839553,-11864.2919674,0.0001499,2]
[340552849,1729453839563,-417.0,0.00015,2]
[340552851,1729453839573,-1433.35341776,0.00015,10]
[340552853,1729453839583,-409.42596431,0.00015,10]
[340552855,1729453839593,-11620.79597582,0.00015,7]
[340552857,1729453839603,-150.30440352,0.00015,15]
[340552859,1729453839613,-500.0,0.00015047,2]
[340552861,1729453839627,-150.0,0.00015047,2]
[340552863,1729453839638,-500.0,0.00015047,2]
[340552865,1729453839647,-917.0,0.00015047,2]
[340552868,1729453839658,-150.0,0.00015047,2]
[340552870,1729453839668,-300.0,0.00015068,2]
[340552871,1729453839678,-167.0,0.000151,2]
[340552873,1729453839687,-420.0,0.00015142,2]
[340552875,1729453839698,-200.0,0.00015275,2]
[340552878,1729453839708,-952.05497628,0.000153,2]
[340552880,1729453839718,-167.38,0.00015377,2]
[340552882,1729453839731,-481.02131389,0.000154,2]
[340552883,1729453839740,-813.3501354,0.000155,2]
[340552885,1729453839751,-167.0,0.00015554,2]
[340552887,1729453839760,-500.0,0.00015595,2]
[340552889,1729453839771,-500.0,0.00015595,2]
[340552891,1729453839782,-917.0,0.00015595,2]
[340552893,1729453839791,-150.0,0.00015595,2]
[340552895,1729453839802,-379.08069678,0.000156,2]
[340552898,1729453839813,-11864.2919674,0.0001574,2]
[340552901,1729453839825,-2867.55518883,0.0001575,2]
[340552903,1729453839835,-204.09468418,0.00015806,2]
[340552905,1729453839845,-158.51714257,0.00015831,2]
[340552907,1729453839854,-333.0,0.000159,2]
[340552909,1729453839864,-212.88,0.00015998,2]
[340552911,1729453839873,-400.0,0.00016,2]
[340552913,1729453839883,-2000.0,0.00016,2]
[340552915,1729453839893,-167.0,0.00016007,2]
[340552916,1729453839903,-2000.0,0.0001601,2]
[340552917,1729453839913,-3536.643548,0.0001602,2]
[340552918,1729453839924,-500.0,0.00016143,2]
[340552919,1729453839938,-968.49467114,0.00016143,2]
[340552920,1729453839950,-917.0,0.00016143,2]
[340552921,1729453839959,-150.0,0.00016143,2]
[340552922,1729453839968,-11864.2919674,0.00016183,2]
[340552923,1729453839977,-1000.0,0.00016198,2]
[340552924,1729453839988,-360.0,0.000163,2]
[340552925,1729453839997,-780.44,0.00016314,2]
[340552926,1729453840007,-164.26,0.00016438,2]
[340552927,1729453840016,-176.89,0.00016438,2]
[340552928,1729453840028,-150.0,0.00016438,2]
[340552929,1729453840038,-300.0,0.00016438,2]
[340552930,1729453840048,-164.26,0.00016575,2]
[340552931,1729453840057,-587.0,0.00016592,2]
[340552932,1729453840067,-500.74875246,0.00016691,2]
[340552933,1729453840076,-917.0,0.00016691,2]
[340552934,1729453840086,-250.84830327,0.00016691,2]
[340552935,1729453840095,-164.26,0.00016712,2]
[340552936,1729453840105,-154.77,0.00016712,2]
[340552937,1729453840114,-164.26,0.00016849,2]
[340552938,1729453840124,-150.0,0.00016871,2]
[340552939,1729453840134,-11864.2919674,0.00016966,2]
[340552940,1729453840144,-200.0,0.00016972,2]
[340552941,1729453840153,-164.26,0.00016986,2]
[340552942,1729453840163,-165.24,0.00017041,2]
[340552943,1729453840172,-164.26,0.00017123,2]
[340552944,1729453840181,-204.09468418,0.00017221,2]
[340552945,1729453840191,-917.0,0.00017239,2]
[340552946,1729453840201,-158.51714257,0.00017243,2]
[340552947,1729453840210,-184.09,0.00017258,2]
[340552948,1729453840219,-164.26,0.0001726,2]
[340552949,1729453840229,-11864.2919674,0.0001727,2]
[340552950,1729453840238,-590.78613408,0.00017279,2]
[340552951,1729453840247,-555.0,0.0001728,2]
[340552952,1729453840258,-284.887,0.0001728,2]
[340552953,1729453840267,-13539.0,0.00017289,2]
[340552954,1729453840276,-150.0,0.00017304,2]
[340552955,1729453840286,-164.26,0.00017397,2]
[340552956,1729453840295,-164.26,0.00017534,2]
[340552957,1729453840304,-256.7,0.00017592,2]
[340552958,1729453840314,-212.88,0.00017597,2]
[340552959,1729453840323,-164.26,0.00017671,2]
[340552960,1729453840333,-150.0,0.00017736,2]
[340552961,1729453840342,-917.0,0.00017787,2]
[340552962,1729453840352,-164.26,0.00017808,2]
[340552963,1729453840363,-1000.0,0.00017818,2]
[340552964,1729453840372,-164.26,0.00017945,2]
[340552965,1729453840382,-1125.09339041,0.00018,2]
[340552966,1729453840392,-1024.18118381,0.00018,2]
[340552967,1729453840401,-4532.0,0.00018,2]
[340552968,1729453840411,-450.0,0.00018,2]
[340552969,1729453840420,-11227.3280071,0.00018062,3]
[340552970,1729453840433,-636.9639603,0.00018062,3]
[340552971,1729453840443,-164.26,0.00018082,2]
[340552972,1729453840452,-180.0,0.00018082,2]
[340552973,1729453840461,-1682.87239774,0.000181,2]
[340552974,1729453840471,-150.0,0.00018169,2]
[340552975,1729453840481,-823.0,0.00018181,2]
[340552976,1729453840490,-164.26,0.00018219,2]
[340552977,1729453840501,-370.64,0.00018301,2]
[340552978,1729453840510,-917.0,0.00018335,2]
[340552979,1729453840520,-164.26,0.00018356,2]
[340552980,1729453840530,-164.26,0.00018493,2]
[340552981,1729453840539,-807.0,0.000185,2]
[340552982,1729453840549,-780.44,0.00018578,2]
[340552983,1729453840558,-150.0,0.00018601,2]
[340552984,1729453840568,-164.26,0.0001863,2]
[340552985,1729453840577,-204.09468418,0.00018637,2]
[340552986,1729453840586,-158.51714257,0.00018654,2]
[340552987,1729453840596,-200.0,0.00018669,2]
[340552988,1729453840606,-164.26,0.00018767,2]
[340552989,1729453840615,-693.26,0.000188,7]
[340552990,1729453840626,-917.0,0.00018883,2]
[340552991,1729453840636,-164.26,0.00018904,2]
[340552992,1729453840645,-11864.2919674,0.00018957,3]
[340552993,1729453840655,-17271.39149656,0.00018967,2]
[340552994,1729453840664,-150.0,0.00019034,2]
[340552995,1729453840674,-164.26,0.00019041,2]
[340552996,1729453840685,-164.26,0.00019178,2]
[340552997,1729453840695,-200.0,0.00019178,2]
[340552998,1729453840705,-200.0,0.00019178,2]
[340552999,1729453840714,-200.0,0.00019178,2]
[340553000,1729453840724,-200.0,0.00019178,2]
[340553001,1729453840733,-195.0,0.00019178,2]
[340553002,1729453840750,-1534.94,0.00019178,2]
[340553003,1729453840760,-212.88,0.00019197,2]
[340553004,1729453840769,-164.26,0.00019315,2]
[340553005,1729453840780,-917.0,0.00019431,2]
[340553006,1729453840791,-1000.0,0.00019437,2]
[340553007,1729453840801,-164.26,0.00019452,2]
[340553008,1729453840810,-150.0,0.00019466,2]
[340553009,1729453840819,-164.41219331,0.00019589,2]
[340553010,1729453840831,-150.0,0.00019899,2]
[340553011,1729453840840,-1152.0,0.00019922,2]
[340553012,1729453840850,-917.0,0.00019979,2]
[340553013,1729453840859,-23728.5839349,0.0001999,3]
[340553014,1729453840869,-295.52314461,0.0002,2]
[340553015,1729453840879,-3796.26036074,0.0002,2]
[340553016,1729453840888,-3950.0,0.0002,2]
[340553017,1729453840900,-2751.66629117,0.0002,7]
[340553018,1729453840909,-150.0,0.0002,2]
[340553019,1729453840919,-365.69290008,0.0002,2]
[340553020,1729453840929,-621.35381856,0.0002,5]
[340553021,1729453840938,-500.0,0.0002,2]
[340553022,1729453840948,-2000.0,0.0002,2]
[340553023,1729453840958,-2000.0,0.0002,2]
[340553024,1729453840967,-150.0,0.0002,2]
[340553025,1729453840977,-503.22,0.0002,2]
[340553026,1729453840986,-503.22,0.0002,2]
[340553027,1729453840996,-503.22,0.0002,2]
[340553028,1729453841006,-503.22,0.0002,2]
[340553029,1729453841015,-503.22,0.0002,2]
[340553030,1729453841025,-503.22,0.0002,2]
[340553031,1729453841034,-503.22,0.0002,2]
[340553032,1729453841043,-503.22,0.0002,2]